{"text_format":"1","workbook":"xlsx","n_sheets":4,"sheets":["HOM 75","HOM +75 ","FEM 57 & +57","Feuil3"],"not_rendered":{"charts":0,"images":0,"macros":0,"external_links":0,"defined_names":3,"comments":3,"pivot_tables":0},"unopened":[],"bounds":{"document_bytes":16777216,"sheet_cells":100000,"rows_first":2000,"rows_last":500,"rows_between":2000,"halvings":0,"cell_chars":16384,"cell_head_chars":4096},"cells_cut":0,"cells_raw":0,"read":"whole","date_system":"1900"}

{"sheet":"HOM 75","index":0,"n_rows":29,"n_cols":17,"rows_kept":29,"cut":false,"hidden":false,"merged":[[0,31,0,34],[1,21,1,23],[1,24,1,30],[1,31,1,32],[1,33,1,34],[4,0,5,0],[4,1,5,1],[4,2,5,2],[4,16,5,16],[4,3,5,3],[4,9,5,9],[4,4,5,4],[4,5,5,5],[4,6,5,6],[4,7,5,7],[4,8,5,8]]}
["CHAMPIONNAT DE FRANCE DE MUSCULATION",null,null,null,null,null,null,null,"Samedi 27 Juin 2015"]
["FINALE",null,null,null,null," ","INSEP"]
[]
[]
["SEXE","ZONE","REG.","LICENCE","NOMS","Prénoms","AN","POIDS","CLUB","NAT",1,2,3,4,5,"TEMPS","Pl."]
[null,null,null,null,null,null,null,null,null,null,null,null,null,null,null," "]
["H","COUEST","CEN",389989,"MENYENGUE","JUSTIN",87,74.099999999999994,"TOURS","F",null,null,null,null,null,432,{"$f":"IF(P7=\"\",\"\",RANK(P7,$P$7:$P$21,1))","v":1}]
["H","SEST","AUV",193979,"RUSSEIL","JEREMY",87,73.599999999999994,"CLERMONT FERRAND","F",null,null,null,null,null,590,{"$f":"IF(P8=\"\",\"\",RANK(P8,$P$7:$P$21,1))","v":2}]
["H","NORD","PIC",379983,"SOUFFLET","CHARLES",90,72.5,"CREIL","F",null,null,null,null,null,817,{"$f":"IF(P9=\"\",\"\",RANK(P9,$P$7:$P$21,1))","v":3}]
[]
["H",null,null,null,null,null,null,null,null,"F",null,null,null,null,null,null,{"$f":"IF(P11=\"\",\"\",RANK(P11,$P$7:$P$21,1))","v":""}]
["H",null,null,null,null,null,null,null,null,"F",null,null,null,null,null,null,{"$f":"IF(P12=\"\",\"\",RANK(P12,$P$7:$P$21,1))","v":""}]
["H",null,null,null,null,null,null,null,null,"F",null,null,null,null,null,null,{"$f":"IF(P13=\"\",\"\",RANK(P13,$P$7:$P$21,1))","v":""}]
[]
["H",null,null,null,null,null,null,null,null,"F",null,null,null,null,null,null,{"$f":"IF(P15=\"\",\"\",RANK(P15,$P$7:$P$21,1))","v":""}]
["H",null,null,null,null,null,null,null,null,"F",null,null,null,null,null,null,{"$f":"IF(P16=\"\",\"\",RANK(P16,$P$7:$P$21,1))","v":""}]
["H",null,null,null,null,null,null,null,null,"F",null,null,null,null,null,null,{"$f":"IF(P17=\"\",\"\",RANK(P17,$P$7:$P$21,1))","v":""}]
[]
["H",null,null,null,null,null,null,null,null,"F",null,null,null,null,null,null,{"$f":"IF(P19=\"\",\"\",RANK(P19,$P$7:$P$21,1))","v":""}]
["H",null,null,null,null,null,null,null,null,"F",null,null,null,null,null,null,{"$f":"IF(P20=\"\",\"\",RANK(P20,$P$7:$P$21,1))","v":""}]
["H",null,null,null,null,null,null,null,null,"F",null,null,null,null,null,null,{"$f":"IF(P21=\"\",\"\",RANK(P21,$P$7:$P$21,1))","v":""}]
[]
[null,null,null,null," ",null,null," ",null,"Assistant technique"]
[null,null,null,null," ",null,null," ",null,"Nom :"]
[null,null,null,null,null,null,null,null,null,"Signature :"]
[]
[null,null,null,"Arbitre",null,null,"Arbitre",null,null,"Arbitre"]
[null,null,null,"Nom :"," ",null,"Nom :"," ",null,"Nom :"]
[null,null,null,"Signature :"," ",null,"Signature :"," ",null,"Signature :"]

{"sheet":"HOM +75 ","index":1,"n_rows":29,"n_cols":17,"rows_kept":29,"cut":false,"hidden":false,"merged":[[8,10,8,14],[6,10,6,14],[4,10,5,14],[7,10,7,14],[4,5,5,5],[4,6,5,6],[4,7,5,7],[4,8,5,8],[4,9,5,9],[4,16,5,16],[0,31,0,34],[1,21,1,23],[1,24,1,30],[1,31,1,32],[1,33,1,34],[4,0,5,0],[4,1,5,1],[4,2,5,2],[4,3,5,3],[4,4,5,4]]}
["CHAMPIONNAT DE FRANCE DE MUSCULATION",null,null,null,null,null,null,null,"Samedi 27 Juin 2015"]
["FINALE",null,null,null,null," ","INSEP"]
[]
[]
["SEXE","ZONE","REG.","LICENCE","NOMS","Prénoms","AN","POIDS","CLUB","NAT","Circuit partiel",null,null,null,null,"TEMPS","Pl."]
[null,null,null,null,null,null,null,null,null,null,null,null,null,null,null," "]
["H","COUEST","CEN",397793,"CHARRAULT","JEROME",86,96,"DREUX","F","1 Tour + 10 Roll out",null,null,null,null,null,1]
["H","NEST","CHA",397453,"LAHRI","MOHAMED",93,80.8,"REIMS","F","10 Roll out + 8 squat",null,null,null,null,null,2]
["H","NEST","ALS",383398,"CALIOGLU","FURKAN",94,79.900000000000006,"OBERNAI","F","10 Roll out",null,null,null,null,null,3]
[]
["H",null,null,null,null,null,null,null,null,"F",null,null,null,null,null,null,{"$f":"IF(P11=\"\",\"\",RANK(P11,$P$7:$P$21,1))","v":""}]
["H",null,null,null,null,null,null,null,null,"F",null,null,null,null,null,null,{"$f":"IF(P12=\"\",\"\",RANK(P12,$P$7:$P$21,1))","v":""}]
["H",null,null,null,null,null,null,null,null,"F",null,null,null,null,null,null,{"$f":"IF(P13=\"\",\"\",RANK(P13,$P$7:$P$21,1))","v":""}]
[]
["H",null,null,null,null,null,null,null,null,"F",null,null,null,null,null,null,{"$f":"IF(P15=\"\",\"\",RANK(P15,$P$7:$P$21,1))","v":""}]
["H",null,null,null,null,null,null,null,null,"F",null,null,null,null,null,null,{"$f":"IF(P16=\"\",\"\",RANK(P16,$P$7:$P$21,1))","v":""}]
["H",null,null,null,null,null,null,null,null,"F",null,null,null,null,null,null,{"$f":"IF(P17=\"\",\"\",RANK(P17,$P$7:$P$21,1))","v":""}]
[]
["H",null,null,null,null,null,null,null,null,"F",null,null,null,null,null,null,{"$f":"IF(P19=\"\",\"\",RANK(P19,$P$7:$P$21,1))","v":""}]
["H",null,null,null,null,null,null,null,null,"F",null,null,null,null,null,null,{"$f":"IF(P20=\"\",\"\",RANK(P20,$P$7:$P$21,1))","v":""}]
["H",null,null,null,null,null,null,null,null,"F",null,null,null,null,null,null,{"$f":"IF(P21=\"\",\"\",RANK(P21,$P$7:$P$21,1))","v":""}]
[]
[null,null,null,null," ",null,null," ",null,"Assistant technique"]
[null,null,null,null," ",null,null," ",null,"Nom :"]
[null,null,null,null,null,null,null,null,null,"Signature :"]
[]
[null,null,null,"Arbitre",null,null,"Arbitre",null,null,"Arbitre"]
[null,null,null,"Nom :"," ",null,"Nom :"," ",null,"Nom :"]
[null,null,null,"Signature :"," ",null,"Signature :"," ",null,"Signature :"]

{"sheet":"FEM 57 & +57","index":2,"n_rows":29,"n_cols":17,"rows_kept":29,"cut":false,"hidden":false,"merged":[[4,5,5,5],[4,6,5,6],[4,7,5,7],[4,8,5,8],[4,9,5,9],[4,16,5,16],[0,31,0,34],[1,21,1,23],[1,24,1,30],[1,31,1,32],[1,33,1,34],[4,0,5,0],[4,1,5,1],[4,2,5,2],[4,3,5,3],[4,4,5,4]]}
["CHAMPIONNAT DE FRANCE DE MUSCULATION",null,null,null,null,null,null,null,"Samedi 27 Juin 2015"]
["FINALE",null,null,null,null," ","INSEP"]
[]
[]
["SEXE","ZONE","REG.","LICENCE","NOMS","Prénoms","AN","POIDS","CLUB","NAT",1,2,3,4,5,"TEMPS","Pl."]
[null,null,null,null,null,null,null,null,null,null,null,null,null,null,null," "]
["F","NORD","IDF",365692,"PATTE","AURELIE",81,55.5,"FRANCONVILLE","F",null,null,null,null,null,1442,1]
["F",null,null,null," ",null,null,null,null,"F",null,null,null,null,null,null,{"$f":"IF(P8=\"\",\"\",RANK(P8,$P$7:$P$21,1))","v":""}]
["F",null,null,null," ",null,null,null,null,"F",null,null,null,null,null,null,{"$f":"IF(P9=\"\",\"\",RANK(P9,$P$7:$P$21,1))","v":""}]
[]
["F","SEST","AUV",357422,"BILLET","LEA",92,71.900000000000006,"CLERMONT FERRAND","F",null,null,null,null,null,463,{"$f":"IF(P11=\"\",\"\",RANK(P11,$P$7:$P$21,1))","v":1}]
["F","NORD","IDF",380682,"DEKEISTER","CHLOE",90,71,"SAINT MAUR","F",null,null,null,null,null,729,{"$f":"IF(P12=\"\",\"\",RANK(P12,$P$7:$P$21,1))","v":2}]
["F","COUEST","CEN",360545,"SOUCHU","CHLOE",93,61.7,"TOURS","F",null,null,null,null,null,"-",{"$f":"IF(P13=\"\",\"\",RANK(P13,$P$7:$P$21,1))","v":{"$error":"#VALUE!"}}]
[]
["F",null,null,null,null,null,null,null,null,"F",null,null,null,null,null,null,{"$f":"IF(P15=\"\",\"\",RANK(P15,$P$7:$P$21,1))","v":""}]
["F",null,null,null,null,null,null,null,null,"F",null,null,null,null,null,null,{"$f":"IF(P16=\"\",\"\",RANK(P16,$P$7:$P$21,1))","v":""}]
["F",null,null,null,null,null,null,null,null,"F",null,null,null,null,null,null,{"$f":"IF(P17=\"\",\"\",RANK(P17,$P$7:$P$21,1))","v":""}]
[]
["F",null,null,null,null,null,null,null,null,"F",null,null,null,null,null,null,{"$f":"IF(P19=\"\",\"\",RANK(P19,$P$7:$P$21,1))","v":""}]
["F",null,null,null,null,null,null,null,null,"F",null,null,null,null,null,null,{"$f":"IF(P20=\"\",\"\",RANK(P20,$P$7:$P$21,1))","v":""}]
["F",null,null,null,null,null,null,null,null,"F",null,null,null,null,null,null,{"$f":"IF(P21=\"\",\"\",RANK(P21,$P$7:$P$21,1))","v":""}]
[]
[null,null,null,null," ",null,null," ",null,"Assistant technique"]
[null,null,null,null," ",null,null," ",null,"Nom :"]
[null,null,null,null,null,null,null,null,null,"Signature :"]
[]
[null,null,null,"Arbitre",null,null,"Arbitre",null,null,"Arbitre"]
[null,null,null,"Nom :"," ",null,"Nom :"," ",null,"Nom :"]
[null,null,null,"Signature :"," ",null,"Signature :"," ",null,"Signature :"]

{"sheet":"Feuil3","index":3,"n_rows":0,"n_cols":0,"rows_kept":0,"cut":false,"hidden":false,"merged":[]}